bitfinex/quotes_ETHUSD_20250517
["timestamp","ask_amount","ask_price","bid_price","bid_amount"]
[1747491423670,4.04862361,2470.0,2469.6,0.55]
[1747491423872,4.04875451,2469.9,2469.6,0.55]
[1747491424023,4.04882064,2469.9,2469.6,0.55]
[1747491424227,4.04891084,2469.8,2469.7,0.38414804]
[1747491424540,4.84541084,2469.8,2469.7,0.38414804]
[1747491424849,12.74841084,2469.8,2469.7,0.38414804]
[1747491425157,4.0496512,2469.4,2469.3,0.55]
[1747491425363,12.74841084,2469.8,2469.3,0.55]
[1747491425364,4.04900218,2469.8,2469.3,0.55]
[1747491425552,11.95200218,2469.8,2469.3,3.28908061]
[1747491425853,7.903,2469.8,2469.3,3.28908061]
[1747491426021,4.04942398,2469.5,2469.2,8.54580605]
[1747491426225,4.0496894,2469.4,2469.2,7.904]
[1747491426836,4.04973069,2469.3,2469.2,7.904]
[1747491427034,4.04973069,2469.3,2469.1,17.487]
[1747491427035,4.0498947,2469.2,2469.1,25.391]
[1747491427627,4.05016729,2469.1,2468.9,7.904]
[1747491427964,4.05055087,2468.8,2468.7,0.64180605]
[1747491428254,4.0501251,2469.1,2468.7,0.64180605]
[1747491428462,7.903,2469.0,2468.7,0.64180605]
[1747491428750,11.95322725,2469.0,2468.7,0.64180605]
[1747491429152,4.05055087,2468.8,2468.7,0.64180605]
[1747491429651,4.0504816,2468.9,2468.7,0.64180605]
[1747491430047,4.05055087,2468.8,2468.7,0.64180605]
[1747491430223,7.903,2469.0,2468.7,0.64180605]
[1747491430431,11.95388542,2469.3,2468.8,4.60051606]
[1747491430647,4.04989821,2469.2,2468.8,0.55]
[1747491431257,0.774,2469.2,2468.7,0.64180605]
[1747491431555,4.05055087,2468.8,2468.7,0.64180605]
[1747491432964,4.05029269,2469.0,2468.7,0.64180605]
[1747491433128,4.04959663,2469.4,2468.8,0.55]
[1747491433458,4.04981691,2469.3,2468.9,0.7684]
[1747491434081,4.05002968,2469.2,2468.9,0.7684]
[1747491434459,4.05047231,2468.9,2468.7,1.41020605]
[1747491434783,4.05028205,2469.0,2468.7,1.41020605]
[1747491435088,12.32933047,2469.6,2468.8,0.59050431]
[1747491435249,11.95341017,2469.5,2469.1,0.55]
[1747491435552,4.04932464,2469.6,2469.1,8.455]
[1747491435749,7.904,2469.7,2469.3,0.55]
[1747491435948,4.82286775,2469.9,2469.3,0.55]
[1747491435949,11.95291084,2469.8,2469.3,4.59965328]
[1747491436180,4.04909228,2469.7,2469.3,0.55]
[1747491436571,4.04943782,2469.5,2469.4,0.38428353]
[1747491436767,4.04931127,2469.6,2469.4,0.38428353]
[1747491436972,4.04933213,2469.6,2469.4,0.38428353]
[1747491437172,4.04940271,2469.5,2469.4,0.38428353]
[1747491438601,4.04931231,2469.6,2469.4,0.38428353]
[1747491438894,4.04898687,2469.8,2469.5,0.55]
[1747491439261,7.904,2470.0,2469.5,0.55]
[1747491439498,4.04898902,2469.8,2469.5,0.55]
[1747491439670,8.678,2470.1,2469.6,0.38428353]
[1747491439859,12.72648363,2470.1,2469.6,0.38428353]
[1747491440280,4.04907478,2469.7,2469.6,0.38428353]
[1747491442489,4.04945542,2469.5,2469.3,7.904]
[1747491443182,4.04956669,2469.4,2469.3,7.904]
[1747491443400,4.04982972,2469.3,2469.1,0.48035441]
[1747491443681,4.04982972,2469.3,2469.1,1.03035441]
[1747491443882,8.7111,2469.6,2469.1,1.03035441]
[1747491443883,4.04934066,2469.6,2469.2,0.93422815]
[1747491444082,4.04911572,2469.7,2469.2,4.98403689]
[1747491444291,11.95211572,2469.7,2469.2,4.98403689]
[1747491444599,4.04836484,2470.2,2469.8,1.3554]
[1747491444600,7.903,2470.2,2469.8,1.3554]
[1747491444889,4.04846807,2470.1,2469.8,1.3554]
[1747491445184,4.04846807,2470.1,2470.0,0.55]
[1747491445388,3.77797639,2470.4,2470.0,0.55]
[1747491445685,2.96987639,2470.4,2470.3,0.55]
[1747491445903,0.005,2470.8,2470.4,4.59791099]
[1747491446254,4.04754868,2470.7,2470.4,0.55]
[1747491446486,0.005,2470.8,2470.6,0.55]
[1747491447258,0.005,2470.8,2470.6,1.04819208]
[1747491447478,0.005,2470.8,2470.6,5.09572189]
[1747491448283,0.005,2470.8,2470.7,0.93422815]
[1747491448594,0.005,2470.8,2470.7,13.78633497]
[1747491448752,0.005,2470.8,2470.7,21.64786409]
[1747491448957,0.005,2470.8,2470.7,24.29832911]
[1747491449154,0.005,2470.8,2470.7,32.20032911]
[1747491450071,0.005,2470.8,2470.7,32.70032911]
[1747491451689,0.005,2471.3,2471.2,4.59661702]
[1747491451890,0.005,2471.3,2471.2,46.64281702]
[1747491452191,0.005,2471.3,2471.2,50.71854403]
[1747491452755,0.005,2471.3,2471.2,35.30177218]
[1747491452960,0.005,2471.3,2471.2,51.10677218]
[1747491454770,0.005,2471.3,2471.2,51.09877218]
[1747491456494,0.005,2471.3,2471.2,42.54877218]
[1747491456885,0.005,2471.3,2471.2,27.30177218]
[1747491457086,0.005,2471.3,2471.2,30.60215516]
[1747491457470,0.005,2471.3,2471.2,38.21792701]
[1747491457681,0.005,2471.3,2471.2,42.81454403]
[1747491457882,0.005,2471.3,2471.2,30.87092701]
[1747491458296,0.005,2471.3,2471.2,37.45372701]
[1747491458498,0.005,2471.3,2471.2,25.378]
[1747491459106,0.005,2471.3,2471.2,25.928]
[1747491459582,0.005,2471.3,2471.2,18.031]
[1747491459883,0.005,2471.3,2471.2,25.928]
[1747491460802,0.005,2471.3,2471.2,17.481]
[1747491461008,4.05145328,2471.3,2471.2,17.481]
[1747491461200,4.0473693,2470.8,2470.4,17.474]
[1747491461384,4.04718819,2470.9,2470.5,9.7731123]
[1747491461584,4.04778384,2470.5,2470.3,0.47512295]
[1747491461784,4.04759911,2470.7,2470.4,7.897]
[1747491461995,0.8032,2470.8,2470.5,0.55]
[1747491462175,4.04745908,2470.7,2470.5,0.55]
[1747491462376,4.04745908,2470.7,2470.4,7.897]
[1747491462779,4.85056168,2470.8,2470.4,9.13903781]
[1747491462980,4.04736168,2470.8,2470.5,0.55]
[1747491463296,11.94854013,2471.3,2470.7,4.04742855]
[1747491463611,0.005,2471.3,2470.9,4.59709203]
[1747491463796,0.005,2471.3,2471.1,0.55]
[1747491464001,4.05159314,2471.3,2471.1,0.55]
[1747491464307,4.05145328,2471.3,2471.2,8.448]
[1747491464979,0.005,2471.3,2471.2,8.448]
[1747491465474,4.05145328,2471.3,2471.2,7.898]
[1747491466382,0.005,2471.3,2471.2,7.898]
[1747491467278,4.05145328,2471.3,2471.2,7.898]
[1747491468409,0.005,2471.3,2471.2,7.898]
[1747491468797,0.005,2471.3,2471.2,8.448]
[1747491472720,0.005,2471.3,2471.2,9.2928]
[1747491472922,0.005,2471.3,2471.2,10.0959]
[1747491473223,0.005,2471.3,2471.2,22.14251702]
[1747491474421,0.005,2471.3,2471.2,30.41838101]
[1747491474815,0.005,2471.3,2471.2,30.91838101]
[1747491475815,0.005,2471.3,2471.2,15.12638101]
[1747491475990,0.005,2471.3,2471.2,30.91838101]
[1747491478622,4.87292642,2472.6,2472.2,0.55]
[1747491478788,4.0445021,2472.5,2472.2,8.446]
[1747491479124,0.8286,2472.6,2472.2,8.446]
[1747491479327,0.8286,2473.3,2472.5,0.55]
[1747491479624,7.50600409,2473.4,2472.9,0.55]
[1747491479625,4.04311679,2473.4,2472.9,0.55]
[1747491479823,0.8286,2473.5,2473.1,0.55]
[1747491479994,4.8715433,2473.5,2473.1,1.4496]
[1747491480190,0.8286,2474.0,2473.1,1.75644106]
[1747491480428,4.04304481,2473.4,2473.1,1.75644106]
[1747491480630,7.895,2473.9,2473.1,1.4496]
[1747491480823,4.04367165,2473.0,2472.9,17.472]
[1747491481012,4.0439987,2472.8,2472.7,7.894]
[1747491481213,4.87276225,2472.7,2472.5,0.63600573]
[1747491481415,4.04432581,2472.6,2472.5,0.63600573]
[1747491481617,12.87292581,2472.6,2472.5,0.63600573]
[1747491482810,13.18370967,2472.6,2472.5,0.63600573]
[1747491483114,4.04612583,2471.5,2471.4,7.894]
[1747491483312,4.04601003,2471.6,2471.4,7.894]
[1747491483651,0.801,2471.8,2471.1,0.47785035]
[1747491483797,4.04661702,2471.2,2471.1,0.47785035]
[1747491483998,4.04653197,2471.3,2471.1,8.37285035]
[1747491484302,4.04653197,2471.3,2471.2,0.38249136]
[1747491485529,4.84753197,2471.3,2471.2,0.38249136]
[1747491486730,4.04653197,2471.3,2471.2,0.38249136]
[1747491487540,4.84753197,2471.3,2471.2,0.38249136]
[1747491488306,4.04710834,2470.9,2470.6,7.895]
[1747491488610,4.04751835,2470.7,2470.6,8.445]
[1747491488803,0.801,2471.3,2470.7,0.55]
[1747491489020,4.04613603,2471.5,2470.9,0.55]
[1747491489242,4.04613603,2471.5,2470.9,1.3156]
[1747491489403,0.7714,2471.6,2471.1,0.55]
[1747491489605,0.7714,2471.6,2471.3,0.55]
[1747491489606,4.81743735,2471.6,2471.3,0.55]
[1747491489800,0.7714,2471.6,2471.3,0.55]
[1747491490004,0.7714,2472.0,2471.4,4.08660621]
[1747491490220,4.04530934,2472.0,2471.6,0.55]
[1747491490451,4.04530934,2472.0,2471.7,7.896]
[1747491491511,4.04527281,2472.1,2471.8,0.55]
[1747491491727,4.04506894,2472.2,2471.8,0.55]
[1747491492127,4.04468524,2472.4,2472.0,0.55]
[1747491492420,1.69031754,2472.8,2472.2,0.55]
[1747491492607,5.73442432,2472.8,2472.3,7.896]
[1747491492807,4.04474257,2472.4,2472.3,8.446]
[1747491493251,4.04474257,2472.4,2472.3,7.896]
[1747491493547,4.04456397,2472.5,2472.3,7.896]
[1747491493719,4.04456397,2472.5,2472.3,8.27795185]
[1747491494119,4.04424124,2472.7,2472.3,9.10574703]
[1747491494344,4.04429853,2472.7,2472.3,8.27795185]
[1747491494552,4.04442343,2472.6,2472.3,8.27795185]
[1747491494940,4.04442343,2472.6,2472.4,0.38195185]
[1747491496322,4.04416225,2472.7,2472.5,0.55]
[1747491496734,4.04416225,2472.7,2472.4,0.55]
[1747491497051,4.04433393,2472.6,2472.4,0.55]
[1747491498450,4.04484365,2472.3,2472.1,0.55]
[1747491498659,4.04448938,2472.5,2472.4,7.895]
[1747491499162,4.04488466,2472.3,2472.0,0.47785035]
[1747491499339,9.19632163,2472.8,2472.1,7.894]
[1747491499520,4.04451697,2472.5,2472.2,0.55]
[1747491501844,21.1393239,2472.8,2472.2,0.55]
[1747491502155,4.04481656,2472.3,2472.1,0.55]
[1747491502358,4.04481656,2472.3,2472.2,8.443]
[1747491503041,4.04472801,2472.4,2472.2,0.55]
[1747491503350,4.04458366,2472.5,2472.2,0.55]
[1747491504217,4.04437001,2472.6,2472.2,0.55]
[1747491504516,4.04417414,2472.7,2472.2,0.55]
[1747491504517,4.04450808,2472.5,2472.2,0.55]
[1747491505649,21.13341899,2472.8,2472.2,0.55]
[1747491505856,4.04463188,2472.5,2472.2,0.55]
[1747491506272,4.04480153,2472.4,2472.2,0.55]
[1747491506423,4.04481656,2472.3,2472.2,8.443]
[1747491507363,4.04505554,2472.2,2471.8,2.49264444]
[1747491507565,4.04488725,2472.3,2471.9,7.893]
[1747491507763,4.04446077,2472.6,2472.1,0.55]
[1747491507921,4.04448958,2472.5,2472.1,0.55]
[1747491508425,4.04448958,2472.5,2472.2,7.893]
[1747491509222,4.04481656,2472.3,2472.2,8.443]
[1747491509848,8.6992,2472.7,2472.1,7.893]
[1747491510029,4.04510394,2472.2,2472.1,7.893]
[1747491511062,4.04523821,2472.1,2471.8,0.7656]
[1747491511266,4.04520104,2472.1,2471.9,7.893]
[1747491511434,4.04486514,2472.3,2471.9,7.893]
[1747491511758,4.04455669,2472.5,2472.1,0.55]
[1747491512066,1.69031754,2472.8,2472.1,0.55]
[1747491512067,7.892,2472.7,2472.1,0.55]
[1747491512260,4.04489744,2472.3,2472.1,0.55]
[1747491512464,4.04489744,2472.3,2472.2,7.893]
[1747491512873,4.04472684,2472.4,2472.2,7.893]
[1747491513433,4.04481656,2472.3,2472.2,7.893]
[1747491514674,4.04498017,2472.2,2472.0,0.7612]
[1747491514848,4.04509242,2472.2,2472.0,7.893]
[1747491515540,4.04509242,2472.2,2472.0,8.62025611]
[1747491515739,4.0446146,2472.5,2472.1,0.55]
[1747491516144,4.0446146,2472.5,2472.2,0.76]
[1747491516345,4.04466587,2472.4,2472.2,0.76]
[1747491517176,4.04457488,2472.5,2472.2,0.76]
[1747491517788,4.04466282,2472.4,2472.2,0.76]
[1747491517983,4.04481656,2472.3,2472.2,1.31]
[1747491518159,4.04481656,2472.3,2472.2,8.443]
[1747491518869,4.04481656,2472.3,2472.2,0.93224067]
[1747491519072,4.04481656,2472.3,2472.2,8.82524067]
[1747491519375,4.04481656,2472.3,2472.2,0.38224067]
[1747491519886,1.69031754,2472.8,2472.4,4.04454062]
[1747491520047,7.50600409,2473.2,2472.5,9.38281572]
[1747491520251,4.04368908,2473.0,2472.5,9.38281572]
[1747491520974,4.04360119,2473.1,2472.5,13.42727744]
[1747491521157,4.04368552,2473.0,2472.7,0.55]
[1747491521478,3.99368552,2473.0,2472.7,0.55]
[1747491521992,4.044092,2472.8,2472.6,0.38224067]
[1747491522193,4.04385877,2472.9,2472.7,7.893]
[1747491522388,11.54950716,2473.2,2472.8,1.37752407]
[1747491522570,4.04352337,2473.1,2472.8,2.13632407]
[1747491522787,11.5494318,2473.2,2472.8,2.51856474]
[1747491523556,4.04350839,2473.1,2472.8,2.51856474]
[1747491523904,11.54942129,2473.2,2472.8,2.51856474]
[1747491524394,11.49942129,2473.2,2472.9,0.38224067]
[1747491524597,4.0434172,2473.2,2472.9,0.38224067]
[1747491525491,4.04351904,2473.1,2472.9,0.38224067]
[1747491525674,4.86578378,2473.3,2472.9,0.38224067]
[1747491525675,4.04325879,2473.3,2473.0,0.55]
[1747491525876,4.04334489,2473.2,2473.0,0.55]
[1747491526255,4.04288855,2473.5,2473.0,0.55]
[1747491526595,4.0430998,2473.4,2473.0,0.55]
[1747491526794,4.0430998,2473.4,2473.1,0.60649359]
[1747491526958,4.0430998,2473.4,2473.2,7.891]
[1747491527159,4.04273744,2473.6,2473.3,0.55]
[1747491527351,4.04285533,2473.5,2473.3,0.55]
[1747491527788,4.79682403,2473.8,2473.3,5.35759463]
[1747491528028,4.04253659,2473.7,2473.4,1.36308353]
[1747491528599,4.04221096,2473.9,2473.5,0.55]
[1747491528929,4.0415471,2474.3,2473.7,0.55]
[1747491529128,4.04236397,2473.8,2473.7,0.55]
[1747491529426,4.04236397,2473.8,2473.7,7.891]
[1747491529630,0.7652,2474.4,2473.7,7.891]
[1747491529925,4.04233066,2473.9,2473.7,8.27324067]
[1747491530131,4.04236397,2473.8,2473.7,0.38224067]
[1747491530841,4.04269081,2473.6,2473.5,7.891]
[1747491531241,4.04305912,2473.4,2473.2,1.3145]
[1747491531540,4.04288224,2473.5,2473.3,7.891]
[1747491531918,4.0430177,2473.4,2473.3,7.891]
[1747491534406,4.04327151,2473.3,2473.1,8.438]
[1747491534612,4.04305052,2473.4,2473.1,10.08314704]
[1747491535116,7.887,2473.7,2473.1,10.08314704]
[1747491535323,4.04316179,2473.4,2473.1,10.08314704]
[1747491536144,4.04333483,2473.3,2473.1,2.19514704]
[1747491536344,4.04346724,2473.2,2473.1,7.887]
[1747491537731,4.04326866,2473.3,2473.1,7.887]
[1747491537939,4.04334465,2473.2,2473.1,7.887]
[1747491539114,4.04334465,2473.2,2473.0,17.464]
[1747491539115,4.04350814,2473.1,2473.0,17.464]
[1747491539313,4.04350814,2473.1,2473.0,25.351]
[1747491540552,7.45600409,2473.6,2473.1,0.55]
[1747491540715,4.04294074,2473.5,2473.2,0.7856]
[1747491540922,4.85003898,2474.0,2473.3,0.55]
[1747491541117,4.04252738,2473.7,2473.3,0.55]
[1747491541317,4.04269951,2473.6,2473.3,0.55]
[1747491541630,7.887,2473.9,2473.3,1.08790972]
[1747491541631,4.04254805,2473.7,2473.3,1.08790972]
[1747491542028,4.04254805,2473.7,2473.4,0.38091479]
[1747491542234,4.04254805,2473.7,2473.5,7.888]
[1747491542632,4.04225664,2473.9,2473.6,0.55]
[1747491542851,4.0421008,2474.0,2473.7,0.7856]
[1747491543175,8.695,2474.3,2473.8,0.55]
[1747491543470,8.695,2474.3,2473.8,4.59225439]
[1747491543471,0.808,2474.3,2473.8,4.59225439]
[1747491543665,7.887,2474.5,2473.8,0.55]
[1747491543867,4.04187017,2474.2,2473.8,0.55]
[1747491544067,4.04190639,2474.1,2473.8,0.55]
[1747491544372,4.04165477,2474.3,2474.0,0.55]
[1747491544570,4.04139829,2474.4,2474.1,7.887]
[1747491544772,4.04171045,2474.2,2474.1,8.437]
[1747491545638,9.69031754,2474.9,2474.2,0.55]
[1747491545832,4.04113081,2474.6,2474.2,1.3356]
[1747491546052,4.04071826,2474.9,2474.5,0.7856]
[1747491546279,4.04046309,2475.0,2474.5,0.7856]
[1747491546506,4.04081789,2474.8,2474.6,7.887]
[1747491546637,0.45498889,2475.1,2474.4,0.55]
[1747491546638,4.04105714,2474.6,2474.4,0.55]
[1747491546837,0.45498889,2475.1,2474.6,0.55]
[1747491547063,4.04071275,2474.9,2474.6,0.55]
[1747491547268,0.45498889,2475.1,2474.6,0.55]
[1747491547471,4.49532336,2475.1,2474.7,0.7856]
[1747491547755,0.45498889,2475.1,2474.8,0.55]
[1747491547950,0.45498889,2475.1,2475.0,0.55]
[1747491548151,0.45498889,2475.1,2475.0,1.4486]
[1747491548381,0.45498889,2475.1,2475.0,14.24240404]
[1747491548586,0.45498889,2475.1,2475.0,19.66]
[1747491548753,0.45498889,2475.1,2475.0,27.546]
[1747491549383,0.45498889,2475.1,2475.0,17.458]
[1747491549384,4.49522968,2475.1,2475.0,17.458]
[1747491549582,0.45498889,2475.1,2474.3,0.92226]
[1747491549744,0.45498889,2475.1,2474.6,0.55]
[1747491549949,4.04047973,2475.0,2474.6,0.55]
[1747491550146,0.45498889,2475.1,2474.6,0.55]
[1747491550370,4.04049553,2475.0,2474.7,0.91884]
[1747491550590,4.04060169,2474.9,2474.7,0.91884]
[1747491550767,4.04073056,2474.8,2474.7,1.46884]
[1747491551087,4.04099317,2474.7,2474.6,0.55]
[1747491551249,4.04105714,2474.6,2474.5,8.6384]
[1747491551450,4.04098043,2474.7,2474.5,1.3034]
[1747491551646,4.04098043,2474.7,2474.5,9.1884]
[1747491552186,4.04096947,2474.7,2474.5,9.1884]
[1747491552503,4.04133886,2474.5,2474.3,0.92226]
[1747491552820,4.04133886,2474.5,2474.4,7.884]
[1747491553376,4.0415471,2474.3,2474.2,0.7534]
[1747491553580,4.0415471,2474.3,2474.2,0.55]
[1747491553811,4.0415471,2474.3,2474.2,0.37949394]
[1747491554317,0.812,2474.9,2474.2,1.07838026]
[1747491554475,4.04074349,2474.8,2474.5,0.55]
[1747491554677,4.04074349,2474.8,2474.6,7.884]
[1747491554881,4.04062232,2474.9,2474.6,7.884]
[1747491555579,4.04074723,2474.8,2474.6,7.884]
[1747491555828,4.04122044,2474.5,2474.4,0.55]
[1747491556121,8.34498889,2475.1,2474.4,9.43487863]
[1747491556281,4.04056923,2474.9,2474.4,13.47615647]
[1747491556627,4.04074312,2474.8,2474.4,9.43487863]
[1747491557077,0.45498889,2475.1,2474.4,13.47625927]
[1747491557078,4.04062995,2474.9,2474.4,13.47625927]
[1747491557414,4.04077481,2474.8,2474.4,9.43487863]
[1747491557602,4.04058507,2474.9,2474.6,0.55]
[1747491557817,4.04101331,2474.7,2474.5,0.55]
[1747491558019,4.04097157,2474.7,2474.5,0.55]
[1747491558317,4.04096594,2474.7,2474.5,0.55]
[1747491558633,4.04096594,2474.7,2474.5,8.434]
[1747491558830,4.04096594,2474.7,2474.5,9.45347786]
[1747491559132,4.04105714,2474.6,2474.5,0.55]
[1747491559447,4.04122044,2474.5,2474.3,0.7599]
[1747491559612,4.04159795,2474.3,2474.1,18.2331]
[1747491559799,4.04171045,2474.2,2474.1,17.454]
[1747491559999,4.04187381,2474.1,2474.0,0.47785035]
[1747491560904,4.04171766,2474.2,2474.0,0.89968561]
[1747491561600,4.04138627,2474.4,2474.1,1.3291]
[1747491563246,8.6855,2474.7,2474.1,1.3291]
[1747491563247,4.04097916,2474.7,2474.1,1.3291]
[1747491563427,4.04107564,2474.6,2474.3,0.55]
[1747491563743,4.04107564,2474.6,2474.4,7.884]
[1747491564238,4.04080001,2474.8,2474.4,7.884]
[1747491564409,4.04073056,2474.8,2474.4,7.884]
[1747491564816,4.04115548,2474.6,2474.4,7.884]
[1747491565227,4.04098684,2474.7,2474.4,7.884]
[1747491565757,4.04078747,2474.8,2474.4,7.884]
[1747491565956,4.04090107,2474.7,2474.4,7.884]
[1747491566258,4.04081809,2474.8,2474.4,9.19426967]
[1747491567023,4.0406311,2474.9,2474.4,13.2355824]
[1747491567557,14.57524447,2475.1,2474.7,4.59080305]
[1747491567757,0.45498889,2475.1,2474.7,5.53266923]
[1747491567917,0.45498889,2475.1,2474.8,4.04063022]
[1747491568122,0.45498889,2475.1,2475.0,0.55]
[1747491568342,0.45498889,2475.1,2475.0,1.3367]
[1747491568936,0.45498889,2475.1,2475.0,1.71716836]
[1747491569260,0.45498889,2475.1,2475.0,7.12443993]
[1747491570535,0.45498889,2475.1,2475.0,3.08403589]
[1747491570741,0.45498889,2475.1,2475.0,7.12443993]
[1747491571540,0.45498889,2475.1,2475.0,3.08403589]
[1747491577056,4.49522968,2475.1,2475.0,8.28946836]
[1747491577443,0.45498889,2475.1,2475.0,0.38046836]
[1747491577671,4.49522968,2475.1,2475.0,0.38046836]
[1747491579239,4.49522968,2475.1,2475.0,0.93046836]
[1747491579443,0.45498889,2475.1,2475.0,0.93046836]
[1747491579636,4.49522968,2475.1,2475.0,0.93046836]
[1747491580972,4.49522968,2475.1,2475.0,0.38046836]
[1747491582576,4.49522968,2475.1,2474.8,7.909]
[1747491582764,4.04041145,2475.0,2474.8,7.909]
[1747491583647,4.49530901,2475.1,2474.8,7.909]
[1747491584152,4.49530901,2475.1,2474.9,0.38071466]
[1747491584575,0.45498889,2475.1,2475.0,4.59040404]
[1747491584741,0.45498889,2475.1,2475.0,5.34150404]
[1747491585252,0.45498889,2475.1,2475.0,1.68181466]
[1747491588384,0.45498889,2475.1,2475.0,0.38071466]
[1747491588385,4.49522968,2475.1,2475.0,0.38071466]
[1747491588772,0.45498889,2475.1,2475.0,0.38071466]
[1747491589141,4.49522968,2475.1,2475.0,0.38071466]
[1747491590486,0.45498889,2475.1,2475.0,0.93071466]
[1747491590812,4.49522968,2475.1,2475.0,2.21874292]
[1747491590991,4.49522968,2475.1,2475.0,0.38071466]
[1747491592201,4.49522968,2475.1,2474.8,7.909]
[1747491592423,4.04040867,2475.0,2474.8,7.909]
[1747491592600,4.04056729,2474.9,2474.6,0.47785035]
[1747491592772,4.040764,2474.8,2474.7,8.459]
[1747491593178,4.040764,2474.8,2474.7,8.8401578]
[1747491593400,4.04065955,2474.9,2474.7,0.9311578]
[1747491593985,4.04073056,2474.8,2474.7,0.3811578]
[1747491597294,4.04056729,2474.9,2474.7,0.3811578]
[1747491597611,4.04073056,2474.8,2474.7,0.3811578]
[1747491597777,11.92065507,2474.9,2474.7,0.3811578]
[1747491598109,4.04073056,2474.8,2474.7,0.3811578]
[1747491600908,4.86923056,2474.8,2474.7,0.3811578]
[1747491601718,12.75023056,2474.8,2474.7,0.3811578]
[1747491601879,4.04104568,2474.7,2474.3,0.47785035]
[1747491602075,4.86923056,2474.8,2474.4,0.55]
[1747491602076,11.92179848,2474.8,2474.4,0.55]
[1747491602377,7.881,2475.0,2474.6,0.55]
[1747491602597,4.0410711,2474.6,2474.4,0.55]
[1747491602813,4.04138376,2474.4,2474.3,1.02785035]
[1747491603392,4.04138376,2474.4,2474.3,0.93128226]
[1747491603688,4.04138376,2474.4,2474.3,0.38128226]
[1747491604318,4.04127986,2474.5,2474.3,0.38128226]
[1747491604489,4.04138376,2474.4,2474.3,0.38128226]
[1747491604891,4.86988376,2474.4,2474.3,0.38128226]
[1747491606003,4.0415471,2474.3,2474.2,7.881]
[1747491606186,4.0415471,2474.3,2473.8,0.47785035]
[1747491606391,4.04189397,2474.1,2473.9,0.55]
[1747491606614,4.04189397,2474.1,2473.9,2.31958504]
[1747491607125,4.04189397,2474.1,2474.0,0.3813365]
[1747491608589,4.04218274,2474.0,2473.8,7.882]
[1747491608790,4.04220057,2473.9,2473.8,7.882]
[1747491609196,4.04236397,2473.8,2473.6,25.331]
[1747491609397,4.04236397,2473.8,2473.6,7.882]
[1747491609398,4.04252738,2473.7,2473.6,7.882]
[1747491609591,4.81046909,2473.9,2473.6,7.882]
[1747491609797,4.04252738,2473.7,2473.6,7.882]
[1747491610531,4.04269081,2473.6,2473.5,0.47785035]
[1747491610729,4.04259661,2473.7,2473.6,0.38098338]
[1747491611299,4.04245427,2473.8,2473.6,0.38098338]
[1747491611633,4.04252738,2473.7,2473.6,0.38098338]
[1747491611929,4.0424814,2473.8,2473.6,0.38098338]
[1747491612093,4.04252738,2473.7,2473.6,0.38098338]
[1747491612290,12.69172738,2473.7,2473.6,0.38098338]
[1747491612908,4.81072738,2473.7,2473.6,0.38098338]
[1747491613337,12.69172738,2473.7,2473.6,0.38098338]
[1747491613547,12.69172738,2473.7,2473.1,0.63600573]
[1747491613548,4.0430177,2473.4,2472.9,0.55]
[1747491613850,4.0430177,2473.4,2473.0,1.24769528]
[1747491614060,4.04350814,2473.1,2473.0,1.24769528]
[1747491614352,4.04371287,2473.0,2472.6,1.60786187]
[1747491614558,4.04371287,2473.0,2472.8,7.883]
[1747491614752,4.04360419,2473.1,2472.8,7.883]
[1747491615320,4.04383128,2473.0,2472.6,0.47785035]
[1747491615537,11.9246116,2473.1,2472.6,1.07187226]
[1747491615742,4.04369957,2473.0,2472.6,1.07187226]
[1747491616112,4.04369957,2473.0,2472.6,0.59402191]
[1747491617112,4.04387519,2472.9,2472.6,0.59402191]
[1747491617314,4.04401325,2472.8,2472.7,7.884]
[1747491617623,4.82914897,2473.3,2472.4,1.3318]
[1747491617827,4.04391481,2472.9,2472.4,5.37643348]
[1747491618036,11.92535613,2473.2,2472.4,1.3318]
[1747491618240,4.04442626,2472.6,2472.4,0.7818]
[1747491618555,4.04391477,2472.9,2472.4,4.82644723]
[1747491618727,4.04391477,2472.9,2472.5,0.38051905]
[1747491620157,4.04391477,2472.9,2472.4,7.65320538]
[1747491622367,4.04368225,2473.0,2472.5,0.55]
[1747491622569,4.04385383,2472.9,2472.5,0.55]
[1747491622952,4.04385383,2472.9,2472.5,4.59446965]
[1747491623284,4.04385383,2472.9,2472.6,0.82031369]
[1747491623450,4.04407199,2472.8,2472.6,7.886]
[1747491623764,4.04417531,2472.7,2472.5,7.886]
[1747491624075,4.04432581,2472.6,2472.4,7.886]
[1747491624634,4.04426945,2472.7,2472.4,7.886]
[1747491625076,4.04406862,2472.8,2472.4,7.886]
[1747491625249,4.04417803,2472.7,2472.4,7.886]
[1747491625845,4.04412114,2472.8,2472.4,9.18827887]
[1747491626048,4.04393323,2472.9,2472.5,0.55]
[1747491626240,4.04393323,2472.9,2472.6,0.7812]
[1747491626444,4.043763,2473.0,2472.6,0.7812]
[1747491626768,0.8017,2472.9,2472.2,0.3106995]
[1747491626975,11.92694269,2472.9,2472.4,4.59464734]
[1747491627283,4.04400596,2472.8,2472.4,0.55]
[1747491627441,4.04417034,2472.7,2472.4,0.55]
[1747491627642,7.883,2472.9,2472.4,0.55]
[1747491628250,4.04418472,2472.7,2472.4,0.55]
[1747491628751,4.04408096,2472.8,2472.4,0.55]
[1747491628964,4.04408096,2472.8,2472.4,2.33218563]
[1747491629649,4.04408096,2472.8,2472.5,0.38060889]
[1747491630072,4.04389539,2472.9,2472.5,0.38060889]
[1747491630274,4.0439987,2472.8,2472.5,0.38060889]
[1747491630473,4.0441744,2472.7,2472.5,0.38060889]
[1747491630701,4.0441744,2472.7,2472.4,2.33218563]
[1747491630983,4.0440785,2472.8,2472.4,2.33218563]
[1747491631285,4.04414489,2472.8,2472.4,2.33218563]
[1747491631448,4.04386452,2472.9,2472.4,2.33218563]
[1747491631649,4.04386452,2472.9,2472.4,6.37680428]
[1747491631881,0.8017,2473.1,2472.7,0.8227]
[1747491631882,4.04352484,2473.1,2472.7,0.8227]
[1747491632050,4.04368199,2473.0,2472.7,0.8227]
[1747491632246,4.04318409,2473.3,2472.8,0.55]
[1747491632496,11.92618409,2473.3,2472.8,0.55]